[Event "44th Chess Olympiad Open 2022"]
[Site "Chennai"]
[Date "2022.08.07"]
[Round "9.80"]
[White "Adeshole Beckley, Brian"]
[Black "Marie, Patrick"]
[Result "1/2-1/2"]
[ECO "E91"]
[WhiteElo "1590"]
[BlackElo "1921"]
[Annotator "TA"]
[PlyCount "99"]
[EventDate "2022.07.29"]
[EventType "team-tourn"]
[EventCountry "IND"]
[SourceTitle "playchess.com"]
[Source "ChessBase"]
[SourceQuality "1"]
[WhiteTeam "SLE"]
[BlackTeam "Mauritius"]
[BlackTeamCountry "MRI"]
[TimeControl "40/5400+30:1800+30"]

{[%evp 16,99,82,66,101,87,112,117,100,21,19,23,33,10,72,33,59,53,50,45,54,34,48,64,59,52,80,85,93,88,81,87,185,181,179,181,516,0,0,-5,-13,-7,0,0,0,-36,-48,-108,-107,-111,-102,-186,-167,-166,-177,-181,-169,-145,-149,-143,-141,-115,-125,-126,0,0,0,0,0,0,0,0,0,0,0,0,0,0,0,0,0,0,0,0,0,0]} 1. d4 {[%emt 0:00:05]} Nf6 {[%emt 0:00:07]} 2. c4 {[%emt 0:00:11]} g6 {[%emt 0:00:06]} 3. Nc3 {[%emt 0:00:12]} Bg7 {[%emt 0:00:08]} 4. e4 {[%emt 0:00:06]} d6 {[%emt 0:00:06]} 5. Nf3 {[%emt 0:00:10]} O-O {[%emt 0:00:14]} 6. Be2 {[%emt 0:00:04]} c5 {[%emt 0:02:07]} 7. d5 {[%emt 0:03:54]} Nbd7 {[%emt 0:03:29]} 8. O-O {[%emt 0:00:34]} a6 {[%emt 0:02:22]} 9. h3 {[%emt 0:02:33]} Nb6 {[%emt 0:03:34] E91: King's Indian: Classical: 6 Be2, unusual replies including 6...c5 and 6...Bg4.} 10. Bf4 {[%emt 0:02:18]} Bd7 {[%emt 0:02:12] [#]} 11. Qd2 $146 {[%emt 0:03:22]} ({Predecessor:} 11. b3 Qc8 12. Kh2 h6 13. Re1 Nh5 14. Be3 Bxc3 {0-1 (14) Yangibayev,N (1153)-Billion,P (1340) LSS email 2010}) 11... Na4 {[%emt 0:03:20] White is better.} 12. Bd3 {[%emt 0:09:12]} (12. Nxa4 $16 {And now Nc3 would win.} Bxa4 13. e5 dxe5 14. Nxe5 (14. Bxe5 e6 $14)) 12... Nxc3 {[%emt 0:01:07]} 13. bxc3 {[%emt 0:00:08]} b5 {[%emt 0:02:25]} 14. e5 {[%emt 0:05:45]} Ne8 {[%emt 0:06:02]} (14... dxe5 $1 $11 {remains equal.} 15. Nxe5 (15. Bxe5 bxc4 16. Bxc4 Bb5 $11) 15... bxc4) 15. Bh6 {[%emt 0:01:09] White is more active.} bxc4 {[%emt 0:02:11]} 16. Bxg7 {[%emt 0:00:16]} Kxg7 {[%emt 0:01:21]} 17. Bxc4 {[%emt 0:00:11]} Bb5 {[%emt 0:00:34]} 18. Qe2 {[%emt 0:03:52]} Qa5 {[%emt 0:05:13]} 19. a4 {[%emt 0:02:06]} Bxc4 {[%emt 0:06:14]} 20. Qxc4 {[%emt 0:00:06]} Rb8 {[%emt 0:01:05]} 21. Rfe1 {[%emt 0:01:41]} Nc7 {[%emt 0:13:40]} 22. exd6 {[%emt 0:00:43]} exd6 {[%emt 0:00:03]} 23. Re7 {[%emt 0:01:11]} Rfe8 {[%emt 0:00:12]} (23... Rbe8 $16 {might work better.} 24. Rae1 h6) 24. Rae1 $18 {[%emt 0:00:15] [#] Ng5 is the strong threat.} Rxe7 {[%emt 0:00:20]} 25. Rxe7 {[%emt 0:00:02]} Re8 $2 {[%emt 0:00:01]} (25... Rf8 {is more resistant.} 26. Qe4 c4) 26. Rxe8 $2 {[%emt 0:01:17]} ({White has to play} 26. Rd7 $18 Rf8 27. Rxd6) 26... Nxe8 {[%emt 0:00:09][%cal Bc7e8,Be8f6,Bf6d5,Bd5b6,Bb6a4][%mdl 4128] Endgame KQN-KQN} 27. Qb3 {[%emt 0:07:23]} Nf6 {[%emt 0:02:00]} 28. Nd2 {[%emt 0:01:42] Prevents Ne4.} c4 {[%emt 0:01:32]} 29. Qxc4 {[%emt 0:03:50]} Qxd5 {[%emt 0:00:05]} 30. Qxd5 {[%emt 0:00:48]} Nxd5 $11 {[%emt 0:00:02] KN-KN} 31. Ne4 {[%emt 0:00:11]} (31. c4 $15 Nc3 32. a5) 31... Nb6 $17 {[%emt 0:03:57]} 32. Nxd6 {[%emt 0:01:54]} Nxa4 {[%emt 0:00:30]} 33. c4 {[%emt 0:00:25]} (33. Ne8+ $17 {keeps fighting.} Kf8 34. Nc7) 33... Nc5 $19 {[%emt 0:00:12]} 34. Kf1 {[%emt 0:02:41]} Kf6 {[%emt 0:00:23]} 35. Ke2 {[%emt 0:00:36]} Ke6 {[%emt 0:01:12]} 36. Nc8 {[%emt 0:00:20]} a5 {[%emt 0:02:00][%cal Ba6a5,Ba5a4][%mdl 32]} 37. Na7 {[%emt 0:02:03]} a4 {[%emt 0:00:48] Threatens to win with ...a3.} 38. Nb5 {[%emt 0:00:11]} Ke5 {[%emt 0:03:04]} 39. Ke3 {[%emt 0:00:21]} Ke6 {[%emt 0:02:39]} (39... g5 $17 {Strongly threatening ...h5.} 40. g3 Ne6) 40. Kd4 $11 {[%emt 0:00:34] The position is equal.} Nb3+ {[%emt 0:01:26]} 41. Kc3 {[%emt 0:30:22]} Nc5 {[%emt 0:33:20]} 42. f3 {[%emt 0:00:20]} Kd7 {[%emt 0:00:26]} 43. Kb4 {[%emt 0:05:20]} Kc6 {[%emt 0:02:36]} 44. Nc3 {[%emt 0:02:58]} Nd3+ {[%emt 0:04:17]} 45. Kxa4 {[%emt 0:00:13]} Ne1 {[%emt 0:00:01]} 46. Ne4 {[%emt 0:01:19]} Nxg2 {[%emt 0:03:41]} 47. Kb4 {[%emt 0:04:52]} Nf4 {[%emt 0:01:02]} 48. Ng5 {[%emt 0:01:37][%csl LRf7,LRh7]} f5 {[%emt 0:01:45]} 49. Nxh7 {[%emt 0:00:59]} Nxh3 {[%emt 0:00:06]} 50. Nf6 {[%emt 0:16:45] Quite a comeback for White.  Weighted Error Value: White=0.31/Black=0.23 (precise)} 1/2-1/2

[Event "44th Chess Olympiad Open 2022"]
[Site "Chennai"]
[Date "2022.08.07"]
[Round "9.81"]
[White "Volpinari, Danilo"]
[Black "Nevska, Gerda"]
[Result "0-1"]
[ECO "D00"]
[WhiteElo "1955"]
[BlackElo "1840"]
[Annotator "TA"]
[PlyCount "114"]
[EventDate "2022.07.29"]
[EventType "team-tourn"]
[EventCountry "IND"]
[SourceTitle "playchess.com"]
[Source "ChessBase"]
[SourceQuality "1"]
[WhiteTeam "San Marino"]
[BlackTeam "Channel Islands"]
[WhiteTeamCountry "SMR"]
[BlackTeamCountry "GCI"]
[TimeControl "40/5400+30:1800+30"]

{[%evp 9,114,-13,18,18,14,22,52,58,124,124,111,106,154,147,148,149,151,151,138,154,152,127,134,122,128,69,67,55,121,81,133,99,102,89,129,135,157,104,123,35,43,29,165,131,158,153,153,183,321,338,300,310,286,298,335,321,325,243,247,173,227,206,217,139,282,286,266,258,241,49,52,47,55,-253,-225,-528,-518,-709,-298,-802,-785,-12839,-12836,-12836,-12835,-12839,-620,-614,-603,-586,-586,-572,-568,-12837,-12838,-12838,-12838,-12838,-12839,-12841,-12841,-12841,-12838,-12837,-12837,-12841,-12841]} 1. d4 {[%emt 0:00:16]} Nf6 {[%emt 0:00:15]} 2. Nc3 {[%emt 0:01:46]} d5 {[%emt 0:00:41]} 3. Bf4 {[%emt 0:00:35]} Bf5 {[%emt 0:04:48]} 4. e3 {[%emt 0:05:07]} a6 {[%emt 0:06:19]} 5. f3 {[%emt 0:05:54]} Nc6 {[%emt 0:03:38]} 6. g4 {[%emt 0:02:42] D00: 1 d4 d5: Unusual lines.} Bg6 {[%emt 0:04:07]} 7. h4 {[%emt 0:01:38] [#] aiming for h5.} h5 $146 {[%emt 0:08:05]} ({Predecessor:} 7... h6 8. Bd3 Bxd3 9. Qxd3 e6 10. O-O-O Bd6 11. Nge2 Qe7 12. g5 Bxf4 13. gxf6 Bxe3+ 14. Qxe3 Qxf6 15. Nxd5 {1-0 (26) Pac,M (1033)-Braschler,D (1046) Willingen 2022}) 8. g5 {[%emt 0:03:14] White is slightly better.} Nd7 {[%emt 0:02:22]} (8... Ng8 $14) 9. Nxd5 $16 {[%emt 0:07:09]} e5 {[%emt 0:00:14]} 10. Bg3 {[%emt 0:03:55]} Nb4 {[%emt 0:05:34]} (10... Bd6 $142) 11. Nxb4 {[%emt 0:04:11]} Bxb4+ {[%emt 0:04:45]} 12. c3 {[%emt 0:00:16]} Bd6 {[%emt 0:00:11]} 13. Bh3 {[%emt 0:06:55]} f6 {[%emt 0:02:47]} 14. gxf6 {[%emt 0:05:09]} gxf6 {[%emt 0:01:02]} 15. Ne2 {[%emt 0:01:37]} (15. Qb3 Bf7 16. Be6 (16. Qxb7 Rb8 $14) 16... Qe7 17. Bxf7+ (17. Qxb7 Rb8 $11) 17... Qxf7 $16) 15... Qe7 {[%emt 0:02:37]} 16. e4 {[%emt 0:19:07]} O-O-O {[%emt 0:04:39]} 17. Qb3 {[%emt 0:09:49]} (17. Qc2 $16) 17... Kb8 $14 {[%emt 0:00:42][%cal Of6f5]} 18. O-O-O {[%emt 0:00:31]} Bf7 {[%emt 0:03:55]} (18... Nb6 $1 $14) 19. Qc2 {[%emt 0:00:47]} Rhg8 {[%emt 0:02:47]} (19... exd4 $142 20. Bxd6 (20. cxd4 Bxg3 21. Nxg3 Bxa2 $14) (20. Rxd4 Ne5 $11) 20... Qxd6) 20. Rhg1 {[%emt 0:02:46]} Nb6 {[%emt 0:00:25]} 21. b3 {[%emt 0:03:34]} Bg6 {[%emt 0:06:15]} 22. Bf2 {[%emt 0:01:07]} Bf7 {[%emt 0:07:52]} 23. Be3 {[%emt 0:02:00]} (23. Ng3 $142) 23... Be6 {[%emt 0:03:09]} 24. Bf1 {[%emt 0:02:14]} (24. Bxe6 $16 Qxe6 25. Qd3) 24... Rxg1 {[%emt 0:02:54]} 25. Bxg1 {[%emt 0:00:51]} Qf7 {[%emt 0:01:57]} (25... f5 $1 $11) 26. d5 {[%emt 0:02:20]} Bd7 {[%emt 0:05:46]} 27. c4 {[%emt 0:00:23][%cal Bc3c4,Bc4c5][%mdl 32] Strongly threatening c5.} Ba3+ {[%emt 0:01:37]} 28. Kb1 {[%emt 0:00:03]} a5 {[%emt 0:00:26]} (28... Nc8 {keeps fighting.} 29. Qc3 Bf8) 29. c5 $18 {[%emt 0:00:33]} Nc8 {[%emt 0:04:47]} 30. c6 {[%emt 0:02:22]} Be8 {[%emt 0:00:05]} 31. cxb7 {[%emt 0:00:44]} Kxb7 {[%emt 0:00:11]} 32. Nc3 {[%emt 0:00:20]} Nd6 {[%emt 0:03:24]} 33. Qd3 {[%emt 0:01:51] Threatening mate with Qa6+.} (33. Qf2 Ra8 34. Qc2 Bd7 $18) 33... Ra8 {[%emt 0:00:11] Prevents Qa6+.} 34. Rd2 {[%emt 0:03:03]} Bb4 {[%emt 0:00:59]} (34... f5 $142 35. exf5 Bd7) 35. Rc2 {[%emt 0:00:45]} f5 {[%emt 0:02:36]} 36. Rc1 {[%emt 0:01:46]} Bxc3 {[%emt 0:00:51]} (36... Ba3 $16) 37. Qxc3 {[%emt 0:00:21]} (37. Rxc3 Bb5 38. Qd1 Bxf1 39. Qxf1 fxe4 $11) 37... fxe4 {[%emt 0:00:12]} 38. fxe4 {[%emt 0:00:50]} ({Less strong is} 38. Qxe5 exf3 39. Qc3 f2 $14) 38... Nxe4 {[%emt 0:00:18][%cal Bd6e4,Be4d2,Bd2f1][%mdl 32]} 39. Qxe5 {[%emt 0:00:50]} (39. Qc2 $18 Nd6 40. Bh2) 39... Nd2+ $14 {[%emt 0:00:18]} 40. Kb2 {[%emt 0:00:32] Hoping for Bg2.} Nxf1 {[%emt 0:00:54]} 41. Qe1 $2 {[%emt 0:13:37][%mdl 8192]} (41. d6 $14 {stays ahead.} cxd6 42. Qxd6) 41... Qg7+ $19 {[%emt 0:02:36]} ({Weaker is} 41... Qxd5 42. Qxf1 a4 43. Qf4 $11) 42. Ka3 $2 {[%emt 0:00:19]} (42. Qc3 {nothing else works.} Qxc3+ 43. Rxc3) 42... Qxg1 {[%emt 0:03:37]} 43. d6 {[%emt 0:04:18]} Bc6 {[%emt 0:03:25] Against Qe4} 44. Qe7 {[%emt 0:02:39] [#]} (44. dxc7 Qg7 45. Qxf1 Qxc7 46. Qc4) 44... Qb6 $1 {[%emt 0:03:10] Black is clearly winning.} 45. Rxf1 {[%emt 0:09:17]} (45. d7 Qb4+) 45... Qb4+ {[%emt 0:00:24]} 46. Kb2 {[%emt 0:00:04]} Qd4+ {[%emt 0:00:39]} 47. Ka3 {[%emt 0:01:18]} Qxd6+ {[%emt 0:00:24]} (47... Qc5+ $142 48. Kb2 Re8 49. Qxc7+ Ka6) 48. Qxd6 {[%emt 0:00:04]} cxd6 {[%emt 0:00:07][%mdl 4096] Endgame KRB-KR} 49. Rf5 {[%emt 0:00:49]} Be8 {[%emt 0:00:56]} 50. Kb2 {[%emt 0:00:59]} a4 {[%emt 0:00:58]} 51. bxa4 {[%emt 0:00:32]} Rxa4 {[%emt 0:00:13]} 52. Rf8 {[%emt 0:01:01]} Bd7 {[%emt 0:01:00]} 53. Rf6 {[%emt 0:01:02]} Kc7 {[%emt 0:01:23]} 54. Rh6 {[%emt 0:00:42]} Rxh4 {[%emt 0:00:10]} 55. a3 {[%emt 0:00:37]} Rh3 {[%emt 0:00:36]} 56. Rh7 {[%emt 0:00:33]} Kc6 {[%emt 0:00:24]} 57. Rh8 {[%emt 0:00:25]} Be6 {[%emt 0:00:19] Weighted Error Value: White=0.83/Black=0.52} 0-1